bitfinex-derivatives/quotes_BTCF0:USTF0_20250803
["timestamp","ask_amount","ask_price","bid_price","bid_amount"]
[1754219471068,0.08247352,114170.0,114160.0,0.85231]
[1754219471655,0.08247352,114170.0,114160.0,0.85131]
[1754219471861,0.08247352,114170.0,114160.0,0.85231]
[1754219472969,0.10699352,114170.0,114160.0,0.85231]
[1754219473468,0.15152355,114170.0,114160.0,0.85231]
[1754219473766,0.12700355,114170.0,114160.0,0.85231]
[1754219474568,0.16711355,114170.0,114160.0,0.85231]
[1754219474768,0.16711355,114170.0,114160.0,0.82818]
[1754219476279,0.15152355,114170.0,114160.0,0.82818]
[1754219478279,0.12700355,114170.0,114160.0,0.82818]
[1754219478880,0.15152355,114170.0,114160.0,0.82818]
[1754219484186,0.16711355,114170.0,114160.0,0.82818]
[1754219484487,0.15152355,114170.0,114160.0,0.82818]
[1754219487388,0.25647355,114170.0,114160.0,0.82818]
[1754219487787,0.23670355,114170.0,114160.0,0.82818]
[1754219487985,0.18904355,114170.0,114160.0,0.82818]
[1754219488189,0.16711355,114170.0,114160.0,0.82818]
[1754219488684,0.15152355,114170.0,114160.0,0.82818]
[1754219489485,0.15152355,114170.0,114160.0,0.83018]
[1754219490888,0.16741355,114170.0,114160.0,0.10858]
[1754219491088,0.16741355,114170.0,114160.0,0.83018]
[1754219491485,0.16741355,114170.0,114160.0,0.82918]
[1754219493190,0.20043355,114170.0,114160.0,0.82918]
[1754219494285,0.16741355,114170.0,114160.0,0.82918]
[1754219495392,0.20043355,114170.0,114160.0,0.82918]
[1754219495591,0.20043355,114170.0,114160.0,0.82618]
[1754219495792,0.20043355,114170.0,114160.0,0.82818]
[1754219496090,0.20043355,114170.0,114160.0,0.97086332]
[1754219496287,0.16741355,114170.0,114160.0,0.97086332]
[1754219496491,0.08247352,114170.0,114160.0,0.96886332]
[1754219496687,0.08247352,114170.0,114160.0,0.97086332]
[1754219496890,0.02997511,114180.0,114170.0,0.09235]
[1754219497191,0.14589312,114180.0,114170.0,0.45315]
[1754219497788,0.04927324,114180.0,114170.0,0.45315]
[1754219497992,0.04927324,114180.0,114170.0,0.45415]
[1754219498791,0.02452324,114180.0,114170.0,0.45415]
[1754219498994,0.02452324,114180.0,114170.0,0.45515]
[1754219499686,0.02452324,114180.0,114170.0,0.46529]
[1754219500895,0.02430969,114190.0,114170.0,0.41025]
[1754219501093,0.04905969,114190.0,114180.0,0.45132]
[1754219501596,0.11933969,114190.0,114180.0,0.45132]
[1754219501792,0.08631969,114190.0,114180.0,0.45132]
[1754219502188,0.06494969,114190.0,114180.0,0.45132]
[1754219502698,0.06594969,114190.0,114180.0,0.45132]
[1754219502993,0.02530969,114190.0,114180.0,0.46906373]
[1754219503695,0.05005969,114190.0,114180.0,0.46906373]
[1754219504097,0.02530969,114190.0,114180.0,0.46906373]
[1754219504293,0.02530969,114190.0,114180.0,0.47006373]
[1754219504492,0.02378399,114200.0,114180.0,0.47006373]
[1754219504693,0.07061259,114210.0,114200.0,0.05398]
[1754219504694,0.02681005,114210.0,114200.0,0.05398]
[1754219504900,0.02681005,114210.0,114200.0,0.43248996]
[1754219505199,0.02681005,114210.0,114200.0,0.43249034]
[1754219506098,0.01537912,114220.0,114200.0,0.63924907]
[1754219506292,0.01537912,114220.0,114210.0,0.3608]
[1754219506499,0.04012912,114220.0,114210.0,0.3608]
[1754219507098,0.01537912,114220.0,114210.0,0.3608]
[1754219507295,0.01537912,114220.0,114210.0,0.535912]
[1754219508399,0.01637912,114220.0,114210.0,0.535912]
[1754219509797,0.01637912,114220.0,114210.0,0.57945136]
[1754219518808,0.01637912,114220.0,114210.0,0.57980136]
[1754219519007,0.03917912,114220.0,114210.0,0.57980136]
[1754219520504,0.01637912,114220.0,114210.0,0.57980136]
[1754219529514,0.03917912,114220.0,114210.0,0.57980136]
[1754219533117,0.03917912,114220.0,114210.0,0.58280136]
[1754219533820,0.03917912,114220.0,114210.0,0.57980136]
[1754219534012,0.03917912,114220.0,114210.0,0.58180136]
[1754219534214,0.01637912,114220.0,114210.0,0.58180136]
[1754219534915,0.03917912,114220.0,114210.0,0.58180136]
[1754219536122,0.03817912,114220.0,114210.0,0.58580136]
[1754219536825,0.03817912,114220.0,114210.0,0.58280136]
[1754219538127,0.03817912,114220.0,114210.0,0.64564111]
[1754219538329,0.01537912,114220.0,114210.0,0.64564111]
[1754219538839,0.03817912,114220.0,114210.0,0.64564111]
[1754219539627,0.03817912,114220.0,114210.0,0.47052911]
[1754219542829,0.16302585,114220.0,114210.0,0.3638]
[1754219544237,0.16302585,114220.0,114210.0,0.3618]
[1754219545232,0.16302585,114220.0,114210.0,0.3608]
[1754219545436,0.16302585,114220.0,114210.0,0.3618]
[1754219546232,0.16302585,114220.0,114210.0,0.3608]
[1754219546436,0.16302585,114220.0,114210.0,0.36093]
[1754219546731,0.16302585,114220.0,114210.0,0.36115]
[1754219548138,0.14217585,114220.0,114210.0,0.36115]
[1754219548435,0.03817912,114220.0,114210.0,0.36115]
[1754219548835,0.03817912,114220.0,114210.0,0.50377085]
[1754219549033,0.07046912,114220.0,114210.0,0.50377085]
[1754219549542,0.03817912,114220.0,114210.0,0.50377085]
[1754219550144,0.01537912,114220.0,114210.0,0.50377085]
[1754219550344,0.04008912,114220.0,114210.0,0.50377085]
[1754219550841,0.04008912,114220.0,114210.0,0.51392085]
[1754219552537,0.04008912,114220.0,114210.0,0.51592085]
[1754219552939,0.01537912,114220.0,114210.0,0.51592085]
[1754219553542,0.14203912,114220.0,114210.0,0.51592085]
[1754219554243,0.14203912,114220.0,114210.0,0.51892085]
[1754219554443,0.12242912,114220.0,114210.0,0.51892085]
[1754219554644,0.09013912,114220.0,114210.0,0.51892085]
[1754219555331,0.06882912,114220.0,114210.0,0.51892085]
[1754219557044,0.04008912,114220.0,114210.0,0.51892085]
[1754219557642,0.04008912,114220.0,114210.0,0.5817606]
[1754219558345,0.04008912,114220.0,114210.0,0.51892085]
[1754219559144,0.04008912,114220.0,114210.0,0.5817606]
[1754219561656,0.04008912,114220.0,114210.0,0.58175561]
[1754219562948,0.04008912,114220.0,114210.0,0.57875561]
[1754219563246,0.04008912,114220.0,114210.0,0.58475561]
[1754219563642,0.04008912,114220.0,114210.0,0.58275561]
[1754219563843,0.05318912,114220.0,114210.0,0.58275561]
[1754219564052,0.14203912,114220.0,114210.0,0.58275561]
[1754219564252,0.14203912,114220.0,114210.0,0.58675561]
[1754219564849,0.09013912,114220.0,114210.0,0.58675561]
[1754219565050,0.09013912,114220.0,114210.0,0.58275561]
[1754219565354,0.09013912,114220.0,114210.0,0.57875561]
[1754219565554,0.09013912,114220.0,114210.0,0.58175561]
[1754219565855,0.09013912,114220.0,114210.0,0.58142158]
[1754219567457,0.09013912,114220.0,114210.0,0.51891586]
[1754219568562,0.01537912,114220.0,114210.0,0.51891586]
[1754219568861,0.04008912,114220.0,114210.0,0.51891586]
[1754219569256,0.04008912,114220.0,114210.0,0.51991586]
[1754219570154,0.02471,114230.0,114210.0,0.75740358]
[1754219570361,0.02471,114230.0,114220.0,0.42329618]
[1754219571963,0.02471,114230.0,114220.0,0.42629618]
[1754219572264,0.03781,114230.0,114220.0,0.42629618]
[1754219572467,0.05345,114230.0,114220.0,0.42629618]
[1754219573160,0.03781,114230.0,114220.0,0.42629618]
[1754219573463,0.02471,114230.0,114220.0,0.3648]
[1754219573662,0.02471,114230.0,114220.0,0.3688]
[1754219576669,0.02942033,114240.0,114220.0,0.44910355]
[1754219576870,0.02942033,114240.0,114230.0,0.42333536]
[1754219577267,0.02942033,114240.0,114230.0,0.3608]
[1754219578377,0.02942033,114240.0,114230.0,0.53587999]
[1754219578964,0.02942033,114240.0,114230.0,0.54087999]
[1754219579168,0.02942033,114240.0,114230.0,0.54387999]
[1754219579877,0.02942033,114240.0,114230.0,0.62242968]
[1754219580067,0.02942033,114240.0,114230.0,1.83342968]
[1754219580258,0.02942033,114240.0,114230.0,1.75487999]
[1754219582067,0.02942033,114240.0,114230.0,1.74687999]
[1754219582268,0.02942033,114240.0,114230.0,1.75987999]
[1754219582765,0.05420033,114240.0,114230.0,2.03123999]
[1754219582969,0.05420033,114240.0,114230.0,2.03023999]
[1754219583970,0.02942033,114240.0,114230.0,2.03023999]
[1754219584378,0.02942033,114240.0,114230.0,2.02223999]
[1754219584580,0.02942033,114240.0,114230.0,2.02923999]
[1754219587275,0.02942033,114240.0,114230.0,1.75787999]
[1754219587486,0.10544033,114240.0,114230.0,1.64519877]
[1754219587780,0.15874033,114240.0,114230.0,1.64120257]
[1754219587972,0.15874033,114240.0,114230.0,1.64520257]
[1754219588974,0.15874033,114240.0,114230.0,1.64420257]
[1754219589675,0.15874033,114240.0,114230.0,1.64220257]
[1754219589877,0.08256033,114240.0,114230.0,1.64220257]
[1754219590071,0.05420033,114240.0,114230.0,1.64220257]
[1754219592477,0.02942033,114240.0,114230.0,1.64220257]
[1754219592676,0.05420033,114240.0,114230.0,1.91348257]
[1754219593180,0.05420033,114240.0,114230.0,1.91360257]
[1754219595682,0.05420033,114240.0,114230.0,1.91376257]
[1754219595881,0.05420033,114240.0,114230.0,1.5798]
[1754219596183,0.08256033,114240.0,114230.0,1.64222281]
[1754219596482,0.15874033,114240.0,114230.0,0.43122281]
[1754219596880,0.15874033,114240.0,114230.0,0.3688]
[1754219597585,0.15874033,114240.0,114230.0,0.3658]
[1754219597781,0.15874033,114240.0,114230.0,0.3688]
[1754219598486,0.15874033,114240.0,114230.0,0.3638]
[1754219598786,0.15874033,114240.0,114230.0,0.3668]
[1754219599787,0.15874033,114240.0,114230.0,0.3648]
[1754219601083,0.05420033,114240.0,114230.0,0.3648]
[1754219601482,0.13586033,114240.0,114230.0,0.3648]
[1754219601682,0.15874033,114240.0,114230.0,0.3648]
[1754219602690,0.15874033,114240.0,114230.0,0.3658]
[1754219603582,0.15874033,114240.0,114230.0,0.3668]
[1754219605479,0.05420033,114240.0,114230.0,0.3668]
[1754219605685,0.02942033,114240.0,114230.0,0.3668]
[1754219606085,0.05420033,114240.0,114230.0,0.3668]
[1754219606281,0.02942033,114240.0,114230.0,0.3668]
[1754219606682,0.02942033,114240.0,114230.0,0.3678]
[1754219607388,0.02942033,114240.0,114230.0,0.3658]
[1754219607587,0.02942033,114240.0,114230.0,0.43022281]
[1754219607782,0.02942033,114240.0,114230.0,0.44038281]
[1754219607987,0.02942033,114240.0,114230.0,0.43538281]
[1754219608186,0.02942033,114240.0,114230.0,0.44238281]
[1754219609895,0.02942033,114240.0,114230.0,0.44438281]
[1754219610097,0.02942033,114240.0,114230.0,0.46050969]
[1754219611995,0.02942033,114240.0,114230.0,0.38196]
[1754219612397,0.02942033,114240.0,114230.0,0.46004938]
[1754219612692,0.07877511,114270.0,114240.0,0.3608]
[1754219612892,0.13236511,114270.0,114260.0,0.7216]
[1754219613998,0.13236511,114270.0,114260.0,0.73942964]
[1754219614501,0.13236511,114270.0,114260.0,0.74342964]
[1754219615698,0.13236511,114270.0,114260.0,0.74542964]
[1754219616594,0.13236511,114270.0,114260.0,0.38462964]
[1754219617702,0.13236511,114270.0,114260.0,0.45611023]
[1754219619705,0.13236511,114270.0,114260.0,0.5549699]
[1754219620502,0.13236511,114270.0,114260.0,0.4925009]
[1754219624200,0.02776511,114270.0,114260.0,0.4925009]
[1754219625101,0.13236511,114270.0,114260.0,0.4925009]
[1754219625404,0.05753511,114270.0,114260.0,0.4925009]
[1754219626807,0.02776511,114270.0,114260.0,0.4925009]
[1754219629016,0.02776511,114270.0,114260.0,0.5549699]
[1754219629309,0.02776511,114270.0,114260.0,0.1941699]
[1754219629513,0.02776511,114270.0,114260.0,0.9157699]
[1754219629810,0.00522511,114270.0,114260.0,0.9157699]
[1754219630011,0.02776511,114270.0,114260.0,0.9157699]
[1754219631114,0.02776511,114270.0,114260.0,0.8533009]
[1754219631312,0.02776511,114270.0,114260.0,0.9157699]
[1754219631912,0.03002374,114280.0,114260.0,1.1785719]
[1754219632213,0.00550385,114280.0,114270.0,0.423269]
[1754219632414,0.03299158,114290.0,114270.0,0.423269]
[1754219632613,0.03299158,114290.0,114280.0,0.423269]
[1754219632814,0.03299158,114290.0,114280.0,0.44082877]
[1754219633203,0.02254,114330.0,114280.0,0.70359877]
[1754219633511,0.14557062,114330.0,114320.0,0.7216]
[1754219634316,0.14557062,114330.0,114320.0,0.73916068]
[1754219634915,0.12484062,114330.0,114320.0,0.73916068]
[1754219635213,0.14557062,114330.0,114320.0,0.73916068]
[1754219636317,0.12714,114330.0,114320.0,0.81074972]
[1754219637614,0.14556169,114330.0,114320.0,0.81074972]
[1754219637815,0.12714,114330.0,114320.0,0.81074972]
[1754219641625,0.302076,114330.0,114320.0,0.7216]
[1754219641813,0.32048238,114330.0,114320.0,0.7216]
[1754219644818,0.24435238,114330.0,114310.0,0.3608]
[1754219645122,0.129,114320.0,114310.0,0.3608]
[1754219645324,0.129,114310.0,114300.0,0.3608]
[1754219645523,0.14740757,114310.0,114300.0,0.3608]
[1754219645721,0.32237557,114310.0,114300.0,0.3608]
[1754219646924,0.32237557,114310.0,114300.0,0.37591]
[1754219647723,0.303968,114310.0,114300.0,0.37591]
[1754219648323,0.303968,114310.0,114300.0,0.39065]
[1754219649827,0.303968,114310.0,114300.0,0.39165]
[1754219650825,0.303968,114310.0,114300.0,0.39265]
[1754219651525,0.129,114310.0,114300.0,0.41526]
[1754219651827,0.129,114310.0,114300.0,0.41426]
[1754219653725,0.129,114310.0,114300.0,0.41526]
[1754219654624,0.07649,114320.0,114300.0,0.41526]
[1754219654818,0.14764856,114320.0,114310.0,0.37591]
[1754219655023,0.14764856,114320.0,114310.0,0.39952]
[1754219655224,0.129,114320.0,114310.0,0.39952]
[1754219655625,0.14786922,114320.0,114310.0,0.39952]
[1754219659120,0.14786922,114320.0,114310.0,0.40352]
[1754219659829,0.129,114320.0,114310.0,0.40352]
[1754219660730,0.129,114320.0,114310.0,0.40152]
[1754219664527,0.14782411,114320.0,114310.0,0.40152]
[1754219665329,0.129,114320.0,114310.0,0.40152]
[1754219666632,0.303952,114320.0,114310.0,0.3628]
[1754219666829,0.32270975,114320.0,114310.0,0.3628]
[1754219667626,0.32270975,114320.0,114310.0,0.37791]
[1754219667821,0.303952,114320.0,114310.0,0.37691]
[1754219668133,0.303952,114320.0,114310.0,0.37591]
[1754219669233,0.32270426,114320.0,114310.0,0.37591]
[1754219669532,0.303952,114320.0,114310.0,0.37591]
[1754219669732,0.129,114320.0,114310.0,0.39886]
[1754219673432,0.12632,114330.0,114320.0,0.02295]
[1754219673635,0.14529905,114330.0,114320.0,0.37583]
[1754219673939,0.12632,114320.0,114310.0,0.39878]
[1754219674340,0.14530158,114320.0,114310.0,0.39878]
[1754219674727,0.12632,114320.0,114310.0,0.39878]
[1754219674934,0.12632,114320.0,114310.0,0.37583]
[1754219675139,0.12632,114320.0,114310.0,0.39878]
[1754219675342,0.14530102,114320.0,114310.0,0.39878]
[1754219675535,0.07316,114320.0,114310.0,0.39878]
[1754219675732,0.12632,114320.0,114310.0,0.39878]
[1754219675934,0.106,114320.0,114310.0,0.39878]
[1754219676135,0.09013,114330.0,114320.0,0.03798]
[1754219676344,0.12943,114330.0,114320.0,0.39878]
[1754219676538,0.1453,114330.0,114320.0,0.39878]
[1754219677344,0.1453,114330.0,114320.0,0.46789684]
[1754219677944,0.05474,114330.0,114320.0,0.46789684]
[1754219678840,0.05474,114330.0,114320.0,0.46889684]
[1754219679038,0.03576,114330.0,114320.0,0.46889684]
[1754219679737,0.03576,114330.0,114320.0,0.46989684]
[1754219680040,0.0686,114330.0,114320.0,0.46989684]
[1754219680240,0.12632,114330.0,114320.0,0.46989684]
[1754219680439,0.14507566,114330.0,114320.0,0.46989684]
[1754219681143,0.14507566,114330.0,114320.0,0.46889684]
[1754219681443,0.14507566,114330.0,114320.0,0.46989684]
[1754219682039,0.14507566,114330.0,114320.0,0.46789684]
[1754219682239,0.14507566,114330.0,114320.0,0.44494684]
[1754219683047,0.14507566,114330.0,114320.0,0.46789684]
[1754219683443,0.12632,114330.0,114320.0,0.46789684]
[1754219683644,0.14508026,114330.0,114320.0,0.46789684]
[1754219684545,0.12632,114330.0,114320.0,0.46789684]
[1754219686744,0.12632,114330.0,114320.0,0.37583]
[1754219686948,0.12632,114330.0,114320.0,0.39058]
[1754219687440,0.14508188,114330.0,114320.0,0.39058]
[1754219688048,0.14508188,114330.0,114320.0,0.41353]
[1754219690045,0.14508188,114330.0,114320.0,0.37555]
[1754219690251,0.14508188,114330.0,114320.0,0.39058]
[1754219690951,0.14508188,114330.0,114320.0,0.41353]
[1754219692759,0.04151188,114330.0,114320.0,0.41353]
[1754219693453,0.08736188,114330.0,114320.0,0.41353]
[1754219693851,0.08736188,114330.0,114320.0,0.41453]
[1754219694256,0.10768188,114330.0,114320.0,0.41453]
[1754219694456,0.12921188,114330.0,114320.0,0.41453]
[1754219694657,0.14508188,114330.0,114320.0,0.41353]
[1754219695260,0.14508188,114330.0,114320.0,0.41453]
[1754219695660,0.14508188,114330.0,114320.0,0.41353]
[1754219696161,0.14508188,114330.0,114320.0,0.48370578]
[1754219697758,0.12632,114330.0,114320.0,0.48370578]
[1754219698462,0.03576,114330.0,114320.0,0.48370578]
[1754219698864,0.0696,114330.0,114320.0,0.48370578]
[1754219699862,0.0696,114330.0,114320.0,0.48470578]
[1754219700463,0.08858,114330.0,114320.0,0.48570578]
[1754219700664,0.11129,114330.0,114320.0,0.48570578]
[1754219700958,0.03384,114350.0,114320.0,0.48470578]
[1754219701169,0.12946,114340.0,114330.0,0.39981]
[1754219701466,0.14822454,114340.0,114330.0,0.39981]
[1754219701862,0.14822454,114340.0,114330.0,0.37704]
[1754219702056,0.50902454,114340.0,114330.0,0.01624]
[1754219702260,0.12946,114330.0,114320.0,0.46998578]
[1754219702463,0.14822454,114330.0,114310.0,0.50329983]
[1754219702763,0.12946,114320.0,114310.0,0.51953983]
[1754219702961,0.14822454,114320.0,114310.0,0.51953983]
[1754219703570,0.14822454,114320.0,114310.0,0.50329983]
[1754219703772,0.84908396,114320.0,114310.0,0.14249983]
[1754219703976,0.07705,114310.0,114280.0,0.43686]
[1754219704276,0.12946,114290.0,114280.0,0.48794]
[1754219704475,0.14820934,114290.0,114280.0,0.48794]
[1754219704668,0.14820921,114290.0,114280.0,0.3608]
[1754219704872,0.42009205,114290.0,114280.0,0.3608]
[1754219705473,0.12946,114280.0,114270.0,0.44922]
[1754219705668,0.14819515,114280.0,114270.0,0.01476]
[1754219705874,0.42412714,114280.0,114270.0,0.01476]
[1754219706974,0.42412714,114280.0,114270.0,0.01876]
[1754219707474,0.40539199,114280.0,114270.0,0.01876]
[1754219708070,0.40339199,114280.0,114270.0,0.004]
[1754219709178,0.05683,114270.0,114260.0,0.48794]
[1754219709376,0.09562,114270.0,114260.0,0.48794]
[1754219710184,0.12946,114270.0,114260.0,0.48794]
[1754219712280,0.40304943,114270.0,114260.0,0.01624]
[1754219712483,0.12946,114260.0,114250.0,0.01476]
[1754219712881,0.40041731,114260.0,114250.0,0.01476]
[1754219713780,0.40041731,114260.0,114240.0,0.41409]
[1754219713781,0.07705,114250.0,114240.0,0.41822]
[1754219713981,0.12946,114250.0,114240.0,0.48794]
[1754219714184,0.39940897,114250.0,114240.0,0.48794]
[1754219714580,0.39940897,114250.0,114230.0,0.41822]
[1754219714780,0.12946,114240.0,114230.0,0.48794]
[1754219715278,0.22519858,114240.0,114230.0,0.48794]
[1754219715486,0.40027858,114240.0,114230.0,0.3608]
[1754219716586,0.40027858,114240.0,114230.0,0.3678]
[1754219716792,0.40027858,114240.0,114230.0,0.42522]
[1754219717879,0.40027858,114240.0,114230.0,0.49494]
[1754219725597,0.3608,114250.0,114230.0,0.49494]
[1754219725598,0.88515,114260.0,114230.0,0.49094]
[1754219725798,0.95649395,114260.0,114250.0,0.12714]
[1754219726094,1.04954708,114260.0,114250.0,0.12714]
[1754219726297,1.22460067,114260.0,114250.0,0.12714]
[1754219728195,1.12222067,114260.0,114250.0,0.12714]
[1754219728391,0.24245267,114260.0,114250.0,0.12714]
[1754219728897,0.11299267,114260.0,114250.0,0.48794]
[1754219729101,0.09405313,114260.0,114250.0,0.48794]
[1754219729304,0.001,114260.0,114250.0,0.48794]
[1754219733390,0.01904756,114270.0,114250.0,0.48838]
[1754219733590,0.02733969,114290.0,114280.0,0.10383]
[1754219733787,0.02434,114290.0,114280.0,0.48834]
[1754219733992,0.14878535,114290.0,114280.0,0.48834]
[1754219734189,0.03298,114300.0,114280.0,0.44474]
[1754219734503,1.62433,114310.0,114300.0,0.12754]
[1754219734804,1.74866761,114310.0,114300.0,0.12754]
[1754219735289,1.74866761,114310.0,114300.0,0.08330297]
[1754219735493,1.81972513,114310.0,114300.0,0.09889297]
[1754219735900,1.84661647,114310.0,114300.0,0.09889297]
[1754219736106,1.48581647,114310.0,114300.0,0.09889297]
[1754219736403,1.85061647,114310.0,114300.0,0.09889297]
[1754219736796,0.07679,114290.0,114280.0,0.05279]
[1754219736992,0.07679,114280.0,114270.0,0.41359]
[1754219737197,0.12692,114280.0,114270.0,0.46463]
[1754219737397,0.22724957,114280.0,114270.0,0.46463]
[1754219738894,0.22824957,114280.0,114270.0,0.46463]
[1754219742705,0.22824957,114280.0,114270.0,0.47899]
[1754219745310,0.12566957,114280.0,114270.0,0.47899]
[1754219745508,0.04412108,114280.0,114270.0,0.47899]
[1754219752309,0.02534,114280.0,114270.0,0.47899]
[1754219752614,0.04398066,114280.0,114270.0,0.47899]
[1754219754715,0.06009066,114280.0,114270.0,0.47899]
[1754219754915,0.09307066,114280.0,114270.0,0.47899]
[1754219756915,0.14656066,114280.0,114270.0,0.47899]
[1754219761014,0.09411066,114280.0,114270.0,0.46463]
[1754219761213,0.12952,114270.0,114260.0,0.06649]
[1754219761415,0.14816066,114270.0,114260.0,0.10339]
[1754219761615,0.24882362,114270.0,114260.0,0.10339]
[1754219762017,0.60962362,114270.0,114250.0,0.05172]
[1754219762221,0.12952,114260.0,114250.0,0.10339]
[1754219762421,0.14816066,114260.0,114250.0,0.10339]
[1754219762622,0.24600353,114260.0,114250.0,0.10339]
[1754219763311,0.24600353,114260.0,114250.0,0.10439]
[1754219764420,0.24600353,114260.0,114250.0,0.10539]
[1754219764820,0.24600353,114260.0,114250.0,0.10439]
[1754219765518,0.24700353,114260.0,114250.0,0.001]
[1754219766120,0.16925353,114260.0,114240.0,0.3608]
[1754219766322,0.12952,114250.0,114240.0,0.44756]
[1754219766620,0.24206869,114250.0,114240.0,0.44756]
[1754219766823,0.24206869,114250.0,114240.0,0.46419]
[1754219767425,0.16431869,114250.0,114230.0,0.37558]
[1754219767725,0.12952,114240.0,114230.0,0.44487]
[1754219767922,0.15627997,114240.0,114230.0,0.44487]
[1754219768127,0.2504439,114240.0,114230.0,0.46419]
[1754219768924,0.32009132,114240.0,114230.0,0.46419]
[1754219769722,0.32109132,114240.0,114230.0,0.46419]
[1754219775136,0.34019209,114240.0,114230.0,0.46419]
[1754219775337,0.32109132,114240.0,114230.0,0.46419]
[1754219775530,0.32109132,114240.0,114230.0,0.10339]
[1754219776038,0.3407527,114240.0,114230.0,0.10339]
[1754219776742,0.3407527,114240.0,114230.0,0.46419]
[1754219778443,0.3407527,114240.0,114230.0,0.47855]
[1754219778640,0.2350027,114240.0,114230.0,0.47855]
[1754219779347,0.2112327,114240.0,114230.0,0.47855]
[1754219779541,0.02066138,114240.0,114230.0,0.47855]
[1754219779741,0.001,114240.0,114230.0,0.47855]
[1754219780140,0.02065524,114240.0,114230.0,0.47855]
[1754219780344,0.01965524,114240.0,114230.0,0.47955]
[1754219780545,0.01965524,114240.0,114230.0,0.41347]
[1754219780744,0.02377,114250.0,114230.0,0.41347]
[1754219780745,0.06682505,114250.0,114230.0,0.41347]
[1754219781044,0.06682505,114250.0,114240.0,0.41247]
[1754219781247,0.06682505,114250.0,114240.0,0.47855]
[1754219781453,0.04342524,114250.0,114240.0,0.47855]
[1754219782546,0.13487459,114250.0,114240.0,0.47855]
[1754219782748,0.04342524,114250.0,114240.0,0.47855]
[1754219783050,0.04342524,114250.0,114240.0,0.48055]
[1754219784453,0.62631365,114250.0,114240.0,0.002]
[1754219784749,0.62631365,114250.0,114240.0,0.001]
[1754219784946,0.04431,114240.0,114230.0,0.41252]
[1754219785252,0.24529263,114240.0,114230.0,0.46419]
[1754219785551,0.24529263,114240.0,114230.0,0.10339]
[1754219786345,0.24529263,114240.0,114230.0,0.01324]
[1754219786756,0.24629263,114240.0,114230.0,0.04564]
[1754219786945,0.24629263,114240.0,114230.0,0.08676]
[1754219787751,0.24729263,114240.0,114230.0,0.08676]
[1754219791645,0.24529263,114240.0,114230.0,0.08676]
[1754219791844,0.24629263,114240.0,114230.0,0.10333]
[1754219793047,0.24729263,114240.0,114230.0,0.10333]
[1754219797862,0.24529263,114240.0,114230.0,0.10333]
[1754219798059,0.24629263,114240.0,114230.0,0.10333]
[1754219798260,0.24729263,114240.0,114230.0,0.10333]
[1754219798559,0.24629263,114240.0,114230.0,0.10333]
[1754219798960,0.24729263,114240.0,114230.0,0.10333]
[1754219809372,0.24729263,114240.0,114230.0,0.08676]
[1754219809669,0.24729263,114240.0,114230.0,0.06744]
[1754219811766,0.51613263,114240.0,114230.0,0.06744]
[1754219814370,0.51613263,114240.0,114220.0,0.3797]
[1754219814371,0.07691,114230.0,114220.0,0.46556]
[1754219814675,0.24370738,114230.0,114220.0,0.46556]
[1754219814871,0.24370738,114230.0,114220.0,0.39567]
[1754219815075,0.24370738,114230.0,114220.0,0.46556]
[1754219820279,0.24370738,114230.0,114220.0,0.47992]
[1754219825180,0.24370738,114230.0,114220.0,0.46556]
[1754219827281,0.24370738,114230.0,114220.0,0.47992]
[1754219828481,0.24370738,114230.0,114220.0,0.11912]
[1754219829186,0.24370738,114230.0,114220.0,0.10476]
[1754219830389,0.24370738,114230.0,114220.0,0.11912]
[1754219832487,0.24370738,114230.0,114220.0,0.47992]
[1754219832888,0.24370738,114230.0,114220.0,0.11912]
[1754219833083,0.24370738,114230.0,114220.0,0.47992]
[1754219837689,0.11578738,114230.0,114220.0,0.46556]
[1754219837888,0.01965524,114230.0,114220.0,0.47992]
[1754219838093,0.14409284,114250.0,114220.0,0.41224]
[1754219838296,0.02255,114240.0,114230.0,0.47604]
[1754219838496,0.04214626,114240.0,114230.0,0.47604]
[1754219840092,0.04214626,114240.0,114230.0,0.47804]
[1754219841598,0.05792626,114240.0,114230.0,0.47904]
[1754219842600,0.12481626,114240.0,114230.0,0.47604]
[1754219842899,0.14298626,114240.0,114230.0,0.47904]
[1754219843403,0.14298626,114240.0,114230.0,0.47704]
[1754219844897,0.14298626,114240.0,114230.0,0.47604]
[1754219851907,0.14298626,114240.0,114230.0,0.47804]
[1754219852600,0.14298626,114240.0,114230.0,0.47904]
[1754219858009,0.14298626,114240.0,114230.0,0.47604]
[1754219858914,0.12481626,114240.0,114230.0,0.47604]
[1754219859712,0.09225626,114240.0,114230.0,0.47604]
[1754219861114,0.05792626,114240.0,114230.0,0.47604]
[1754219861324,0.05792626,114240.0,114230.0,0.47804]
[1754219861512,0.05792626,114240.0,114230.0,0.47904]
[1754219865918,0.08982626,114240.0,114230.0,0.47904]
[1754219866118,0.08982626,114240.0,114230.0,0.48004]
[1754219866319,0.08982626,114240.0,114230.0,0.48104]
[1754219866918,0.08982626,114240.0,114230.0,0.48204]
[1754219867819,0.08982626,114240.0,114230.0,0.48004]
[1754219869520,0.12387626,114240.0,114230.0,0.48004]
[1754219869819,0.14267626,114240.0,114230.0,0.48004]
[1754219870020,0.12387626,114240.0,114230.0,0.48004]
[1754219870209,0.09197626,114240.0,114230.0,0.48004]
[1754219872020,0.09197626,114240.0,114230.0,0.11924]
[1754219872319,0.09197626,114240.0,114230.0,0.48004]
[1754219873619,0.09197626,114240.0,114230.0,0.47604]
[1754219873822,0.09197626,114240.0,114230.0,0.49284]
[1754219875021,0.12387626,114240.0,114230.0,0.49284]
[1754219879228,0.14264626,114240.0,114230.0,0.49284]
[1754219882524,0.01959626,114240.0,114230.0,0.49284]
[1754219886131,0.09336284,114250.0,114230.0,0.42733]
[1754219886336,0.11978339,114250.0,114240.0,0.10348]
[1754219886632,0.21629757,114250.0,114240.0,0.10348]
[1754219886830,0.23966757,114250.0,114240.0,0.10348]
[1754219887326,0.12389,114240.0,114230.0,0.48108]
[1754219887533,0.14315339,114240.0,114230.0,0.48108]
[1754219887826,0.24131894,114240.0,114230.0,0.47908]
[1754219888131,0.24031894,114240.0,114230.0,0.47908]
[1754219889136,0.24031894,114240.0,114230.0,0.11828]
[1754219889733,0.24031894,114240.0,114230.0,0.12028]
[1754219894031,0.24031894,114240.0,114230.0,0.06638]
[1754219894240,0.24031894,114240.0,114230.0,0.0148]
[1754219894440,0.60111894,114240.0,114230.0,0.0148]
[1754219894935,0.12389,114230.0,114220.0,0.42751]
[1754219895140,0.14315339,114230.0,114220.0,0.44875]